fUST/lending_fUST_20250530
["ID","MTS","AMOUNT","RATE_DAILY","PERIOD"]
[363138016,1748597275653,-462.50949502,0.00019452,2]
[363138017,1748597275676,-430.0,0.00019452,2]
[363138018,1748597275698,-430.0,0.00019452,2]
[363138019,1748597275720,-430.0,0.00019452,2]
[363138020,1748597275743,-430.0,0.00019452,2]
[363138021,1748597275766,-430.0,0.00019452,2]
[363138022,1748597275788,-430.0,0.00019452,2]
[363138023,1748597275816,-430.0,0.00019452,2]
[363138024,1748597275838,-430.0,0.00019452,2]
[363138025,1748597275862,-430.0,0.00019452,2]
[363138026,1748597275884,-430.0,0.00019452,2]
[363138027,1748597275906,-430.0,0.00019452,2]
[363138028,1748597275928,-430.0,0.00019452,2]
[363138029,1748597275949,-430.0,0.00019452,2]
[363138030,1748597275972,-430.0,0.00019452,2]
[363138031,1748597275993,-430.0,0.00019452,2]
[363138032,1748597276016,-430.0,0.00019452,2]
[363138033,1748597276038,-430.0,0.00019452,2]
[363138034,1748597276060,-430.0,0.00019452,2]
[363138035,1748597276087,-430.0,0.00019452,2]
[363138036,1748597276110,-430.0,0.00019452,2]
[363138037,1748597276135,-588.24,0.00019452,2]
[363138038,1748597276367,-430.0,0.00019452,2]
[363138039,1748597276392,-374.93055772,0.00019452,2]
[363138040,1748597276415,-213.44292413,0.00019452,2]
[363138041,1748597276437,-430.0,0.00019452,2]
[363138042,1748597276461,-430.0,0.00019452,2]
[363138043,1748597276484,-948.01,0.00019452,2]
[363138044,1748597276507,-430.0,0.00019452,2]
[363138045,1748597276529,-430.0,0.00019452,2]
[363138046,1748597276554,-382.86160078,0.00019452,2]
[363138047,1748597276577,-430.0,0.00019452,2]
[363138048,1748597276599,-430.0,0.00019452,2]
[363138049,1748597276622,-430.0,0.00019452,2]
[363138050,1748597276644,-430.0,0.00019452,2]
[363138051,1748597276666,-430.0,0.00019452,2]
[363138052,1748597276688,-430.0,0.00019452,2]
[363138053,1748597276709,-494.42079598,0.00019452,2]
[363138054,1748597276731,-430.0,0.00019452,2]
[363138055,1748597276753,-430.0,0.00019452,2]
[363138056,1748597276775,-430.0,0.00019452,2]
[363138057,1748597276796,-430.0,0.00019452,2]
[363138058,1748597276818,-430.0,0.00019452,2]
[363138059,1748597276841,-430.0,0.00019452,2]
[363138060,1748597276862,-430.0,0.00019452,2]
[363138061,1748597276883,-376.09967657,0.00019452,2]
[363138062,1748597276905,-430.0,0.00019452,2]
[363138063,1748597276927,-430.0,0.00019452,2]
[363138064,1748597276949,-430.0,0.00019452,2]
[363138065,1748597276971,-430.0,0.00019452,2]
[363138066,1748597276995,-430.0,0.00019452,2]
[363138067,1748597277017,-430.0,0.00019452,2]
[363138068,1748597277038,-430.0,0.00019452,2]
[363138069,1748597277061,-528.46,0.00019452,2]
[363138070,1748597277084,-430.0,0.00019452,2]
[363138071,1748597277110,-430.0,0.00019452,2]
[363138072,1748597277133,-430.0,0.00019452,2]
[363138073,1748597277155,-430.0,0.00019452,2]
[363138074,1748597277177,-430.0,0.00019452,2]
[363138075,1748597277198,-430.0,0.00019452,2]
[363138076,1748597277220,-430.0,0.00019452,2]
[363138077,1748597277242,-430.0,0.00019452,2]
[363138078,1748597277265,-430.0,0.00019452,2]
[363138079,1748597277290,-430.0,0.00019452,2]
[363138080,1748597277313,-430.0,0.00019452,2]
[363138081,1748597277337,-205.83381847,0.00019452,2]
[363138083,1748597277361,-430.0,0.00019452,2]
[363138084,1748597277385,-430.0,0.00019452,2]
[363138085,1748597277408,-430.0,0.00019452,2]
[363138086,1748597277435,-430.0,0.00019452,2]
[363138087,1748597277459,-574.07,0.00019452,2]
[363138088,1748597277483,-1783.16,0.00019452,2]
[363138090,1748597277505,-423.55693185,0.00019452,2]
[363138091,1748597277527,-430.0,0.00019452,2]
[363138092,1748597277550,-444.58,0.00019452,2]
[363138093,1748597277574,-1996.34,0.00019452,2]
[363138094,1748597277596,-430.0,0.00019452,2]
[363138095,1748597277618,-430.0,0.00019452,2]
[363138096,1748597277641,-430.0,0.00019452,2]
[363138097,1748597277663,-430.0,0.00019452,2]
[363138098,1748597277686,-500.0,0.00019452,2]
[363138099,1748597277709,-430.0,0.00019452,2]
[363138100,1748597277730,-430.0,0.00019452,2]
[363138101,1748597277752,-430.0,0.00019452,2]
[363138102,1748597277774,-430.0,0.00019452,2]
[363138103,1748597277795,-430.0,0.00019452,2]
[363138104,1748597277817,-430.0,0.00019452,2]
[363138105,1748597277840,-430.0,0.00019452,2]
[363138106,1748597277860,-430.0,0.00019452,2]
[363138107,1748597277883,-430.0,0.00019452,2]
[363138108,1748597277907,-430.0,0.00019452,2]
[363138109,1748597277929,-430.0,0.00019452,2]
[363138110,1748597277952,-404.65201298,0.00019452,2]
[363138111,1748597277974,-430.0,0.00019452,2]
[363138112,1748597277996,-430.0,0.00019452,2]
[363138113,1748597278018,-430.0,0.00019452,2]
[363138114,1748597278040,-430.0,0.00019452,2]
[363138115,1748597278064,-455.53,0.00019452,2]
[363138116,1748597278086,-430.0,0.00019452,2]
[363138117,1748597278108,-430.0,0.00019452,2]
[363138118,1748597278130,-430.0,0.00019452,2]
[363138119,1748597278152,-1106.73,0.00019452,2]
[363138120,1748597278175,-504.09,0.00019452,2]
[363138121,1748597278196,-430.0,0.00019452,2]
[363138122,1748597278218,-430.0,0.00019452,2]
[363138123,1748597278238,-430.0,0.00019452,2]
[363138124,1748597278260,-430.0,0.00019452,2]
[363138125,1748597278284,-410.64991967,0.00019452,2]
[363138126,1748597278308,-430.0,0.00019452,2]
[363138127,1748597278331,-430.0,0.00019452,2]
[363138128,1748597278354,-1074.51,0.00019452,2]
[363138129,1748597278380,-430.0,0.00019452,2]
[363138130,1748597278402,-430.0,0.00019452,2]
[363138131,1748597278424,-566.28,0.00019452,2]
[363138132,1748597278445,-430.0,0.00019452,2]
[363138133,1748597278468,-430.0,0.00019452,2]
[363138134,1748597278491,-430.0,0.00019452,2]
[363138135,1748597278514,-430.0,0.00019452,2]
[363138136,1748597278537,-430.0,0.00019452,2]
[363138137,1748597278559,-430.0,0.00019452,2]
[363138138,1748597278582,-430.0,0.00019452,2]
[363138139,1748597278602,-430.0,0.00019452,2]
[363138140,1748597278620,-430.0,0.00019452,2]
[363138141,1748597278639,-857.11,0.00019452,2]
[363138142,1748597278828,-430.0,0.00019452,2]
[363138143,1748597278850,-430.0,0.00019452,2]
[363138144,1748597278873,-430.0,0.00019452,2]
[363138145,1748597278895,-430.0,0.00019452,2]
[363138146,1748597278917,-343.22230058,0.00019452,2]
[363138147,1748597278938,-529.11,0.00019452,2]
[363138148,1748597278960,-430.0,0.00019452,2]
[363138149,1748597278981,-430.0,0.00019452,2]
[363138150,1748597279002,-170.35409438,0.00019452,2]
[363138151,1748597279023,-430.0,0.00019452,2]
[363138152,1748597279045,-430.0,0.00019452,2]
[363138153,1748597279067,-830.78,0.00019452,2]
[363138154,1748597279090,-430.0,0.00019452,2]
[363138155,1748597279111,-430.0,0.00019452,2]
[363138156,1748597279133,-346.03172676,0.00019452,2]
[363138157,1748597279154,-430.0,0.00019452,2]
[363138158,1748597279177,-430.0,0.00019452,2]
[363138159,1748597279199,-430.0,0.00019452,2]
[363138160,1748597279221,-430.0,0.00019452,2]
[363138161,1748597279243,-430.0,0.00019452,2]
[363138162,1748597279266,-836.83,0.00019452,2]
[363138163,1748597279292,-430.0,0.00019452,2]
[363138164,1748597279314,-430.0,0.00019452,2]
[363138165,1748597279343,-430.0,0.00019452,2]
[363138166,1748597279367,-430.0,0.00019452,2]
[363138167,1748597279391,-824.64,0.00019452,2]
[363138168,1748597279413,-430.0,0.00019452,2]
[363138169,1748597279436,-430.0,0.00019452,2]
[363138170,1748597279458,-430.0,0.00019452,2]
[363138171,1748597279482,-430.0,0.00019452,2]
[363138172,1748597279508,-430.0,0.00019452,2]
[363138173,1748597279532,-430.0,0.00019452,2]
[363138174,1748597279555,-430.0,0.00019452,2]
[363138175,1748597279578,-537.30722969,0.00019452,2]
[363138176,1748597279600,-430.0,0.00019452,2]
[363138177,1748597279626,-1883.63,0.00019452,2]
[363138178,1748597279649,-540.79488643,0.00019452,2]
[363138179,1748597279672,-471.17266525,0.00019452,2]
[363138180,1748597279695,-430.0,0.00019452,2]
[363138181,1748597279717,-319.87561211,0.00019452,2]
[363138182,1748597279739,-355.68672287,0.00019452,2]
[363138183,1748597279761,-514.85220983,0.00019452,2]
[363138184,1748597279783,-430.0,0.00019452,2]
[363138185,1748597279805,-324.53541914,0.00019452,2]
[363138186,1748597279826,-430.0,0.00019452,2]
[363138187,1748597279848,-430.0,0.00019452,2]
[363138188,1748597279870,-430.0,0.00019452,2]
[363138189,1748597279892,-562.51,0.00019452,2]
[363138190,1748597279915,-430.0,0.00019452,2]
[363138191,1748597279936,-430.0,0.00019452,2]
[363138192,1748597279957,-430.0,0.00019452,2]
[363138193,1748597279980,-430.0,0.00019452,2]
[363138194,1748597280004,-561.99774394,0.00019452,2]
[363138195,1748597280026,-430.0,0.00019452,2]
[363138196,1748597280048,-374.1227884,0.00019452,2]
[363138197,1748597280070,-430.0,0.00019452,2]
[363138198,1748597280091,-430.0,0.00019452,2]
[363138199,1748597280113,-430.0,0.00019452,2]
[363138200,1748597280137,-444.78,0.00019452,2]
[363138201,1748597280158,-439.95,0.00019452,2]
[363138202,1748597280183,-314.62934788,0.00019452,2]
[363138203,1748597280205,-430.0,0.00019452,2]
[363138204,1748597280227,-430.0,0.00019452,2]
[363138205,1748597280249,-430.0,0.00019452,2]
[363138206,1748597280270,-403.81510061,0.00019452,2]
[363138207,1748597280295,-430.0,0.00019452,2]
[363138208,1748597280316,-430.0,0.00019452,2]
[363138209,1748597280338,-430.0,0.00019452,2]
[363138210,1748597280362,-430.0,0.00019452,2]
[363138211,1748597280387,-430.0,0.00019452,2]
[363138212,1748597280410,-430.0,0.00019452,2]
[363138213,1748597280433,-430.0,0.00019452,2]
[363138214,1748597280455,-430.0,0.00019452,2]
[363138215,1748597280477,-400.0,0.00019452,2]
[363138216,1748597280498,-430.0,0.00019452,2]
[363138217,1748597280519,-430.0,0.00019452,2]
[363138218,1748597280541,-430.0,0.00019452,2]
[363138219,1748597280562,-430.0,0.00019452,2]
[363138220,1748597280583,-430.0,0.00019452,2]
[363138221,1748597280604,-430.0,0.00019452,2]
[363138222,1748597280628,-430.0,0.00019452,2]
[363138223,1748597280649,-430.0,0.00019452,2]
[363138224,1748597280671,-430.0,0.00019452,2]
[363138225,1748597280693,-430.0,0.00019452,2]
[363138226,1748597280715,-430.0,0.00019452,2]
[363138227,1748597280736,-430.0,0.00019452,2]
[363138228,1748597280757,-430.0,0.00019452,2]
[363138229,1748597280782,-430.0,0.00019452,2]
[363138230,1748597280804,-5506.67,0.00019452,2]
[363138231,1748597280826,-430.0,0.00019452,2]
[363138232,1748597280847,-430.0,0.00019452,2]
[363138233,1748597280869,-430.0,0.00019452,2]
[363138234,1748597280892,-430.0,0.00019452,2]
[363138235,1748597280914,-451.81794322,0.00019452,2]
[363138236,1748597280935,-541.91961803,0.00019452,2]
[363138237,1748597280957,-430.0,0.00019452,2]
[363138238,1748597280979,-430.0,0.00019452,2]
[363138239,1748597281002,-430.0,0.00019452,2]
[363138240,1748597281159,-430.0,0.00019452,2]
[363138241,1748597281182,-430.0,0.00019452,2]
[363138242,1748597281205,-430.0,0.00019452,2]
[363138243,1748597281229,-8951.93,0.00019452,2]
[363138244,1748597281252,-591.86,0.00019452,2]
[363138245,1748597281275,-430.0,0.00019452,2]
[363138246,1748597281300,-431.70411064,0.00019452,2]
[363138247,1748597281321,-433.9319657,0.00019452,2]
[363138248,1748597281345,-308.43371454,0.00019452,2]
[363138249,1748597281371,-430.0,0.00019452,2]
[363138250,1748597281397,-2160.83,0.00019452,2]
[363138251,1748597281419,-430.0,0.00019452,2]
[363138252,1748597281441,-430.0,0.00019452,2]
[363138253,1748597281464,-430.0,0.00019452,2]
[363138254,1748597281487,-430.0,0.00019452,2]
[363138255,1748597281512,-2452.22,0.00019452,2]
[363138256,1748597281534,-553.69,0.00019452,2]
[363138257,1748597281560,-11186.29,0.00019452,2]
[363138258,1748597281585,-11047.33,0.00019452,2]
[363138259,1748597281606,-430.0,0.00019452,2]
[363138260,1748597281633,-430.0,0.00019452,2]
[363138261,1748597281655,-430.0,0.00019452,2]
[363138262,1748597281677,-358.33129502,0.00019452,2]
[363138263,1748597281698,-400.5083285,0.00019452,2]
[363138264,1748597281720,-430.0,0.00019452,2]
[363138265,1748597281743,-493.66,0.00019452,2]
[363138266,1748597281766,-430.0,0.00019452,2]
[363138267,1748597281789,-556.94,0.00019452,2]
[363138268,1748597281813,-430.0,0.00019452,2]
[363138269,1748597281836,-430.0,0.00019452,2]
[363138270,1748597281859,-2046.01,0.00019452,2]
[363138271,1748597281883,-430.0,0.00019452,2]
[363138272,1748597281906,-355.15836169,0.00019452,2]
[363138273,1748597281929,-1526.1,0.00019452,2]
[363138274,1748597281952,-430.0,0.00019452,2]
[363138275,1748597281975,-430.0,0.00019452,2]
[363138276,1748597281998,-430.0,0.00019452,2]
[363138277,1748597282022,-3000.65,0.00019452,2]
[363138278,1748597282045,-430.0,0.00019452,2]
[363138279,1748597282070,-877.16,0.00019452,2]
[363138280,1748597282095,-1329.06,0.00019452,2]
[363138281,1748597282117,-430.0,0.00019452,2]
[363138282,1748597282145,-430.0,0.00019452,2]
[363138283,1748597282168,-430.0,0.00019452,2]
[363138284,1748597282191,-430.0,0.00019452,2]
[363138285,1748597282214,-430.0,0.00019452,2]
[363138286,1748597282238,-504.12441166,0.00019452,2]
[363138287,1748597282261,-430.0,0.00019452,2]
[363138288,1748597282284,-430.0,0.00019452,2]
[363138289,1748597282311,-430.0,0.00019452,2]
[363138290,1748597282337,-430.0,0.00019452,2]
[363138291,1748597282362,-547.42,0.00019452,2]
[363138292,1748597282392,-430.0,0.00019452,2]
[363138293,1748597282417,-430.0,0.00019452,2]
[363138294,1748597282443,-1809.14,0.00019452,2]
[363138295,1748597282468,-430.0,0.00019452,2]
[363138296,1748597282492,-1425.96,0.00019452,2]
[363138297,1748597282516,-1268.43,0.00019452,2]
[363138298,1748597282538,-400.0,0.00019452,2]
[363138299,1748597282560,-430.0,0.00019452,2]
[363138300,1748597282584,-430.0,0.00019452,2]
[363138301,1748597282608,-430.0,0.00019452,2]
[363138302,1748597282636,-430.0,0.00019452,2]
[363138303,1748597282660,-500.0,0.00019452,2]
[363138304,1748597282684,-430.0,0.00019452,2]
[363138305,1748597282708,-7367.39,0.00019452,2]
[363138306,1748597282731,-430.0,0.00019452,2]
[363138307,1748597282754,-2136.1,0.00019452,2]
[363138308,1748597282779,-1161.28,0.00019452,2]
[363138309,1748597282800,-430.0,0.00019452,2]
[363138310,1748597282823,-1502.07,0.00019452,2]
[363138311,1748597282846,-430.0,0.00019452,2]
[363138312,1748597282868,-430.0,0.00019452,2]
[363138313,1748597282892,-401.08225389,0.00019452,2]
[363138314,1748597282914,-232.9454435,0.00019452,2]
[363138315,1748597282937,-1266.16,0.00019452,2]
[363138316,1748597282959,-9226.19,0.00019452,2]
[363138317,1748597282982,-1356.28,0.00019452,2]
[363138318,1748597283005,-430.0,0.00019452,2]
[363138319,1748597283029,-4321.44,0.00019452,2]
[363138320,1748597283054,-430.0,0.00019452,2]
[363138321,1748597283079,-723.49,0.00019452,2]
[363138322,1748597283102,-430.0,0.00019452,2]
[363138323,1748597283125,-430.0,0.00019452,2]
[363138324,1748597283149,-430.0,0.00019452,2]
[363138325,1748597283177,-5978.98,0.00019452,2]
[363138326,1748597283202,-679.38,0.00019452,2]
[363138327,1748597283225,-430.0,0.00019452,2]
[363138328,1748597283250,-625.2,0.00019452,2]
[363138329,1748597283274,-430.0,0.00019452,2]
[363138330,1748597283302,-430.0,0.00019452,2]
[363138331,1748597283326,-431.91,0.00019452,2]
[363138332,1748597283352,-430.0,0.00019452,2]
[363138333,1748597283379,-430.0,0.00019452,2]
[363138334,1748597283530,-430.0,0.00019452,2]
[363138335,1748597283555,-430.0,0.00019452,2]
[363138336,1748597283581,-430.0,0.00019452,2]
[363138337,1748597283606,-430.0,0.00019452,2]
[363138338,1748597283633,-430.0,0.00019452,2]
[363138339,1748597283662,-1914.18,0.00019452,2]
[363138340,1748597283688,-370.0,0.00019452,2]
[363138341,1748597283716,-430.0,0.00019452,2]
[363138342,1748597283745,-3495.65,0.00019452,2]
[363138343,1748597283771,-3459.98,0.00019452,2]
[363138344,1748597283796,-1059.38,0.00019452,2]
[363138345,1748597283820,-430.0,0.00019452,2]
[363138346,1748597283844,-430.0,0.00019452,2]
[363138347,1748597283868,-2485.01,0.00019452,2]
[363138348,1748597283896,-430.0,0.00019452,2]
[363138349,1748597283925,-1651.88,0.00019452,2]
[363138350,1748597283949,-430.0,0.00019452,2]
[363138351,1748597283974,-430.0,0.00019452,2]
[363138352,1748597283998,-430.0,0.00019452,2]
[363138353,1748597284022,-966.71,0.00019452,2]
[363138354,1748597284045,-430.0,0.00019452,2]
[363138355,1748597284070,-430.0,0.00019452,2]
[363138356,1748597284093,-430.0,0.00019452,2]
[363138357,1748597284117,-430.0,0.00019452,2]
[363138358,1748597284142,-430.0,0.00019452,2]
[363138359,1748597284165,-2730.01,0.00019452,2]
[363138360,1748597284188,-430.0,0.00019452,2]
[363138361,1748597284210,-430.0,0.00019452,2]
[363138362,1748597284233,-5712.73,0.00019452,2]
[363138363,1748597284255,-477.58856187,0.00019452,2]
[363138364,1748597284278,-341.1941447,0.00019452,2]
[363138365,1748597284304,-430.0,0.00019452,2]
[363138366,1748597284328,-10569.57,0.00019452,2]
[363138367,1748597284352,-430.0,0.00019452,2]
[363138368,1748597284376,-430.0,0.00019452,2]
[363138369,1748597284398,-430.0,0.00019452,2]
[363138370,1748597284420,-430.0,0.00019452,2]
[363138371,1748597284441,-242.24427179,0.00019452,2]
[363138372,1748597284464,-430.0,0.00019452,2]
[363138373,1748597284487,-430.0,0.00019452,2]
[363138374,1748597284510,-492.00722823,0.00019452,2]
[363138375,1748597284532,-579.82,0.00019452,2]
[363138376,1748597284555,-430.0,0.00019452,2]
[363138377,1748597284576,-189.31241294,0.00019452,2]
[363138378,1748597284599,-1041.63,0.00019452,2]
[363138379,1748597284621,-1504.98,0.00019452,2]
[363138380,1748597284646,-2577.66,0.00019452,2]
[363138381,1748597284669,-430.0,0.00019452,2]
[363138382,1748597284691,-527.74761476,0.00019452,2]
[363138383,1748597284714,-430.0,0.00019452,2]
[363138384,1748597284735,-430.0,0.00019452,2]
[363138385,1748597284757,-430.0,0.00019452,2]
[363138386,1748597284779,-308.59554151,0.00019452,2]
[363138387,1748597285120,-430.0,0.00019178,2]
[363138388,1748597285143,-166.01445849,0.00019452,2]
[363138389,1748597285165,-430.0,0.00019452,2]
[363138390,1748597285186,-430.0,0.00019452,2]
[363138391,1748597285208,-842.17,0.00019452,2]
[363138392,1748597285231,-819.77,0.00019452,2]
[363138393,1748597285378,-415.96720372,0.00019452,2]
[363138394,1748597285404,-1602.86,0.00019452,2]
[363138395,1748597285425,-430.0,0.00019452,2]
[363138396,1748597285447,-430.0,0.00019452,2]
[363138397,1748597285470,-2541.8,0.00019452,2]
[363138398,1748597285492,-430.0,0.00019452,2]
[363138399,1748597285514,-1154.34,0.00019452,2]
[363138400,1748597285535,-263.67062352,0.00019452,2]
[363138401,1748597285556,-430.0,0.00019452,2]
[363138402,1748597285578,-450.0,0.00019452,2]
[363138403,1748597285600,-430.0,0.00019452,2]
[363138404,1748597285620,-430.0,0.00019452,2]
[363138405,1748597285642,-481.32024323,0.00019452,2]
[363138406,1748597285666,-430.0,0.00019452,2]
[363138407,1748597285688,-430.0,0.00019452,2]
[363138408,1748597285712,-4897.98,0.00019452,2]
[363138409,1748597285734,-648.24,0.00019452,2]
[363138410,1748597285755,-430.0,0.00019452,2]
[363138411,1748597285777,-441.06159895,0.00019452,2]
[363138412,1748597285800,-6400.38,0.00019452,2]
[363138413,1748597285820,-430.0,0.00019452,2]
[363138414,1748597285842,-430.0,0.00019452,2]
[363138415,1748597285862,-430.0,0.00019452,2]
[363138416,1748597285886,-430.0,0.00019452,2]
[363138417,1748597285907,-430.0,0.00019452,2]
[363138418,1748597285928,-2816.75,0.00019452,2]
[363138419,1748597285949,-430.0,0.00019452,2]
[363138420,1748597285970,-302.94783816,0.00019452,2]
[363138421,1748597285992,-430.0,0.00019452,2]
[363138422,1748597286012,-430.0,0.00019452,2]
[363138423,1748597286033,-430.0,0.00019452,2]
[363138424,1748597286055,-1496.05,0.00019452,2]
[363138425,1748597286077,-642.7,0.00019452,2]
[363138426,1748597286099,-779.81,0.00019452,2]
[363138427,1748597286120,-430.0,0.00019452,2]
[363138428,1748597286143,-350.6103771,0.00019452,2]
[363138429,1748597286166,-2633.33,0.00019452,2]
[363138430,1748597286187,-416.78572452,0.00019452,2]
[363138431,1748597286209,-430.0,0.00019452,2]
[363138432,1748597286233,-1054.12,0.00019452,2]
[363138433,1748597286256,-430.0,0.00019452,2]
[363138434,1748597286277,-5583.27,0.00019452,2]
[363138435,1748597286302,-430.0,0.00019452,2]
[363138436,1748597286324,-430.0,0.00019452,2]
[363138437,1748597286347,-1885.16,0.00019452,2]
[363138438,1748597286370,-430.0,0.00019452,2]
[363138439,1748597286395,-430.0,0.00019452,2]
[363138440,1748597286418,-430.0,0.00019452,2]
[363138441,1748597286440,-430.0,0.00019452,2]
[363138442,1748597286463,-549.84,0.00019452,2]
[363138443,1748597286486,-8512.65,0.00019452,2]
[363138444,1748597286508,-430.0,0.00019452,2]
[363138445,1748597286532,-830.07,0.00019452,2]
[363138446,1748597286556,-533.42,0.00019452,2]
[363138447,1748597286577,-430.0,0.00019452,2]
[363138448,1748597286598,-430.0,0.00019452,2]
[363138449,1748597286620,-430.0,0.00019452,2]
[363138450,1748597286643,-430.0,0.00019452,2]
[363138451,1748597286664,-430.0,0.00019452,2]
[363138452,1748597286686,-430.0,0.00019452,2]
[363138453,1748597286707,-430.0,0.00019452,2]
[363138454,1748597286727,-430.0,0.00019452,2]
[363138455,1748597286748,-430.0,0.00019452,2]
[363138456,1748597286768,-548.48842799,0.00019452,2]
[363138457,1748597286789,-181.08010149,0.00019453,2]
[363138458,1748597286810,-500.0,0.0001946,2]
[363138459,1748597286830,-500.0,0.00019473,2]
[363138460,1748597286851,-500.0,0.00019473,2]
[363138461,1748597286873,-158.15086412,0.00019473,2]
[363138462,1748597286897,-1001.34052729,0.000195,2]
[363138463,1748597286918,-11679.85154442,0.000195,2]
[363138464,1748597286947,-22032.971685,0.000195,2]
[363138465,1748597287480,-149987.91716071,0.000195,2]
[363138466,1748597287502,-516.35,0.000195,14]
[363138467,1748597287523,-1030.7012,0.000195,2]
[363138468,1748597287544,-1030.7012,0.000195,2]
[363138469,1748597287566,-187.78006525,0.00019508,2]
[363138470,1748597287588,-215.0738,0.00019515,2]
[363138471,1748597287608,-160.0,0.00019532,3]
[363138472,1748597287631,-194.72792766,0.00019563,2]
[363138473,1748597287651,-603.21626016,0.000196,2]
[363138474,1748597287672,-201.93286099,0.00019618,2]
[363138475,1748597287693,-6270.10490554,0.00019626,2]
[363138476,1748597287720,-2139.28050201,0.00019659,2]
[363138477,1748597287742,-209.40437684,0.00019673,2]
[363138478,1748597287761,-1096.95,0.00019682,2]
[363138479,1748597287782,-158.26410021,0.00019699,2]
[363138480,1748597287802,-501.11848321,0.00019721,2]
[363138481,1748597287822,-1000.0,0.00019721,2]
[363138482,1748597287843,-1000.0,0.00019721,2]
[363138483,1748597287863,-160.0,0.00019725,2]
[363138484,1748597287884,-430.0,0.00019726,2]
[363138485,1748597287904,-460.05217875,0.00019726,2]
[363138486,1748597287924,-430.0,0.00019726,2]
[363138487,1748597287945,-376.03657869,0.00019726,2]
[363138488,1748597287966,-430.0,0.00019726,2]
[363138489,1748597287987,-430.0,0.00019726,2]
[363138490,1748597288009,-430.0,0.00019726,2]
[363138491,1748597288030,-420.0,0.00019726,2]
[363138492,1748597288050,-167.08816316,0.00019726,2]
[363138493,1748597288072,-430.0,0.00019726,2]
[363138494,1748597288094,-430.0,0.00019726,2]
[363138495,1748597288115,-430.0,0.00019726,2]
[363138496,1748597288139,-538.21524396,0.00019726,2]
[363138497,1748597288160,-430.0,0.00019726,2]
[363138498,1748597288182,-430.0,0.00019726,2]
[363138499,1748597288203,-430.0,0.00019726,2]
[363138500,1748597288225,-430.0,0.00019726,2]
[363138501,1748597288245,-430.0,0.00019726,2]
[363138502,1748597288267,-430.0,0.00019726,2]
[363138503,1748597288289,-430.0,0.00019726,2]
[363138504,1748597288311,-430.0,0.00019726,2]
[363138505,1748597288333,-430.0,0.00019726,2]
[363138506,1748597288355,-430.0,0.00019726,2]
[363138507,1748597288377,-430.0,0.00019726,2]
[363138508,1748597288399,-173.16803214,0.00019726,2]
[363138509,1748597288420,-430.0,0.00019726,2]
[363138510,1748597288441,-422.05714651,0.00019726,2]
[363138511,1748597288463,-430.82997614,0.00019726,2]
[363138512,1748597288484,-430.0,0.00019726,2]
[363138513,1748597288504,-430.0,0.00019726,2]
[363138514,1748597288524,-444.95620097,0.00019726,2]
[363138515,1748597288544,-402.16107037,0.00019726,2]
[363138516,1748597288565,-430.0,0.00019726,2]
[363138517,1748597288586,-430.0,0.00019726,2]